bitfinex/quotes_ETHUSD_20220117
["timestamp","ask_amount","ask_price","bid_price","bid_amount"]
[1642453827106,1.30592839,3194.3,3194.0,0.00625266]
[1642453827734,1.30592839,3194.3,3193.8,0.00738951]
[1642453827934,1.30592839,3194.3,3193.9,3.1]
[1642453828334,1.30592839,3194.3,3194.0,0.00625266]
[1642453828536,2.87125839,3194.3,3194.0,0.00625266]
[1642453829359,2.87125839,3194.3,3193.4,0.0096632]
[1642453829535,2.87125839,3194.3,3193.3,0.01023162]
[1642453829736,2.87125839,3194.3,3193.2,2.72831774]
[1642453829737,1.43244459,3193.8,3193.2,2.72831774]
[1642453829942,2.07435423,3193.8,3193.2,2.72831774]
[1642453830138,0.00227369,3193.7,3193.2,2.72831774]
[1642453830538,0.00170527,3193.6,3193.2,2.72831774]
[1642453831005,0.00113684,3193.5,3193.2,2.72831774]
[1642453831210,0.00113684,3193.5,3193.3,0.3]
[1642453831404,0.00227369,3193.7,3193.3,0.3]
[1642453831810,1.56552,3194.0,3193.3,0.3]
[1642453831811,0.00170527,3193.6,3193.3,0.3]
[1642453832103,0.00113684,3193.5,3193.3,0.3]
[1642453832508,0.00341054,3193.9,3193.3,0.3]
[1642453832714,0.00341054,3193.9,3193.7,1.11900881]
[1642453833010,0.00284211,3193.8,3193.7,1.41900881]
[1642453833215,0.00284211,3193.8,3193.7,0.3]
[1642453833462,0.00284211,3193.8,3193.2,1.26028162]
[1642453833604,0.00284211,3193.8,3193.3,0.3]
[1642453833820,0.00284211,3193.8,3193.2,0.05005]
[1642453833821,0.00227369,3193.7,3193.2,0.05005]
[1642453834104,0.00170527,3193.6,3193.2,0.05005]
[1642453834303,3.06430013,3193.6,3193.2,0.05005]
[1642453834527,0.00113684,3193.5,3193.2,0.05005]
[1642453834760,1.40814808,3193.4,3193.2,0.05005]
[1642453835160,2.97398778,3193.4,3193.2,0.05005]
[1642453836869,1.5658397,3193.4,3193.2,0.05005]
[1642453838903,1.5158397,3193.4,3193.2,0.05005]
[1642453839290,0.7329197,3193.4,3193.2,0.05005]
[1642453843749,0.78293,3193.3,3193.2,0.05005]
[1642453848207,6.48293,3193.3,3193.2,0.05005]
[1642453848404,0.78293,3193.3,3193.2,0.05005]
[1642453852646,1.56691684,3193.5,3193.2,0.05005]
[1642453854303,2.67740664,3193.4,3193.2,0.05005]
[1642453857534,2.67740664,3193.4,3193.2,5e-05]
[1642453857935,3.46031114,3193.4,3193.2,5e-05]
[1642453858137,6.28293,3193.3,3193.2,5e-05]
[1642453859036,17.28293,3193.3,3193.2,5e-05]
[1642453861805,19.96054206,3193.3,3193.2,5e-05]
[1642453861991,19.96054206,3193.3,3191.9,2.5816497]
[1642453861992,18.5,3193.2,3191.9,2.5816497]
[1642453862205,0.78319,3192.7,3191.9,2.5816497]
[1642453862410,1.03409,3192.7,3192.0,0.00738951]
[1642453862988,1.38533015,3192.2,3192.0,1.13233204]
[1642453863291,2.95172015,3192.2,3191.9,2.5816497]
[1642453864290,2.67761206,3192.1,3191.9,2.5816497]
[1642453866346,3.88189563,3192.1,3191.9,2.5816497]
[1642453866542,4.84109563,3192.1,3191.9,2.5816497]
[1642453866948,10.13327,3192.0,3191.9,2.5816497]
[1642453867189,0.78327,3192.0,3191.9,2.5816497]
[1642453867943,5.88327,3192.0,3191.9,2.5816497]
[1642453868342,8.56088206,3192.0,3191.9,2.5816497]
[1642453868596,3.46088206,3192.0,3191.9,2.5816497]
[1642453871316,2.67761206,3192.0,3191.9,2.8816497]
[1642453871700,2.67761206,3192.0,3191.9,4.07949]
[1642453871913,2.67761206,3192.0,3191.9,20.57949]
[1642453872124,2.67761206,3192.0,3191.9,20.65397925]
[1642453872559,2.67761206,3192.0,3191.9,5.45397925]
[1642453872740,6.69563458,3192.7,3191.9,5.45397925]
[1642453872944,2.67761206,3192.7,3192.5,1.4457154]
[1642453873141,0.00341054,3192.6,3192.5,1.4457154]
[1642453873756,0.00341054,3192.6,3192.5,1.7457154]
[1642453874540,0.00341054,3192.6,3192.5,1.77729948]
[1642453875170,2.6810226,3192.6,3192.5,1.77729948]
[1642453875797,2.6810226,3192.6,3192.5,2.07729948]
[1642453875991,2.6810226,3192.6,3192.5,7.47729948]
[1642453875992,0.00341054,3192.6,3192.5,7.47729948]
[1642453876396,0.00341054,3192.6,3192.5,2.07729948]
[1642453879402,0.00341054,3192.6,3192.5,0.63158408]
[1642453879626,0.00341054,3192.6,3192.5,0.33158408]
[1642453880114,0.00341054,3192.6,3192.5,0.03158408]
[1642453880446,0.00341054,3192.6,3192.5,3.13158408]
[1642453884594,0.00341054,3192.6,3192.5,3.11616084]
[1642453886611,0.00341054,3192.6,3192.5,3.41616084]
[1642453886791,0.00341054,3192.6,3192.5,3.11616084]
[1642453886994,0.00341054,3192.6,3192.5,3.41616084]
[1642453889550,0.00341054,3192.6,3192.5,3.43158408]
[1642453890348,0.00341054,3192.6,3192.5,3.13158408]
[1642453890548,0.00341054,3192.6,3192.5,3.43158408]
[1642453891504,2.6810226,3192.6,3192.5,3.43158408]
[1642453892496,0.00341054,3192.6,3192.5,3.43158408]
[1642453894947,0.00341054,3192.6,3192.5,3.13158408]
[1642453898689,5.75341054,3192.6,3192.5,3.13158408]
[1642453898904,0.00341054,3192.6,3192.5,3.13158408]
[1642453899610,5.35341054,3192.6,3192.5,3.11616084]
[1642453900202,6.13701054,3192.6,3192.5,3.11616084]
[1642453900598,16.58701054,3192.6,3192.5,3.11616084]
[1642453901910,19.26519225,3192.6,3192.5,3.11616084]
[1642453902347,8.81519225,3192.6,3192.5,3.11616084]
[1642453902818,8.76519225,3192.6,3192.5,3.11616084]
[1642453904451,3.46178171,3192.6,3192.5,3.11616084]
[1642453904651,2.67818171,3192.6,3192.5,3.11616084]
[1642453904850,6.88235871,3192.6,3192.5,3.11616084]
[1642453905066,2.67818171,3192.6,3192.5,3.11616084]
[1642453907097,2.67818171,3192.6,3192.5,3.41616084]
[1642453907701,2.62818171,3192.6,3192.5,3.41616084]
[1642453908598,2.62818171,3192.6,3192.5,3.11616084]
[1642453909007,2.0153838,3193.1,3192.5,3.11616084]
[1642453909206,2.0153838,3193.1,3193.0,1.31010768]
[1642453909597,9.9153838,3193.1,3193.0,1.31010768]
[1642453909847,10.6984338,3193.1,3193.0,1.31010768]
[1642453911349,0.78302,3193.1,3193.0,1.31010768]
[1642453912348,2.34914,3193.2,3193.0,1.31010768]
[1642453912955,11.17547144,3193.1,3193.0,1.31010768]
[1642453915427,10.05,3193.1,3193.0,1.31010768]
[1642453916420,11.32968725,3193.1,3193.0,1.31010768]
[1642453918243,0.783074,3193.0,3192.5,3.1]
[1642453918439,2.40528943,3192.9,3192.5,3.1]
[1642453919092,2.34924,3192.9,3192.5,3.1]
[1642453919446,2.34924,3192.9,3192.8,1.49697348]
[1642453919646,2.34924,3192.9,3192.5,3.1]
[1642453919853,2.35094527,3192.9,3192.5,3.1]
[1642453920045,1.56738685,3192.8,3192.5,3.1]
[1642453920260,0.783123,3192.7,3192.5,3.1]
[1642453920446,0.78315,3192.6,3192.5,3.1]
[1642453920750,0.78315,3192.6,3192.5,4.26956858]
[1642453924601,0.783123,3192.7,3192.5,4.26956858]
[1642453924850,0.78422685,3192.8,3192.5,4.26956858]
[1642453928148,2.67852528,3192.7,3192.5,4.21956858]
[1642453933837,0.00113685,3192.8,3192.5,4.21956858]
[1642453938210,0.78417685,3192.8,3192.5,4.21956858]
[1642453939415,2.67852528,3192.7,3192.5,4.21956858]
[1642453940257,2.67852528,3192.7,3192.5,3.05]
[1642453941451,3.96591849,3192.7,3192.6,1.19327672]
[1642453941657,4.74906849,3192.7,3192.6,1.19327672]
[1642453942450,3.46167528,3192.7,3192.6,1.19327672]
[1642453942696,2.67852528,3192.7,3192.6,1.19327672]
[1642453945103,2.67852528,3192.7,3192.6,8.64327672]
[1642453946104,2.67852528,3192.7,3192.6,9.99540526]
[1642453946402,1.53054152,3193.4,3192.8,8.9]
[1642453946610,1.53054152,3193.4,3192.8,9.5]
[1642453946801,0.00284212,3193.3,3192.9,1.0]
[1642453947249,0.00227369,3193.2,3192.8,0.6]
[1642453947543,0.00170527,3193.1,3192.7,1.0]
[1642453947943,0.00113684,3193.0,3192.7,1.3]
[1642453948244,0.00341054,3193.4,3192.7,1.3]
[1642453948654,0.00454739,3193.6,3192.7,1.3]
[1642453949044,0.00397896,3193.5,3192.7,1.3]
[1642453949455,0.00341054,3193.4,3192.7,1.3]
[1642453949648,0.00341054,3193.4,3192.9,0.03077126]
[1642453949849,0.00454739,3193.6,3192.9,0.03077126]
[1642453950309,0.00397896,3193.5,3192.9,0.03077126]
[1642453950650,2.31337152,3193.7,3192.9,0.03077126]
[1642453950651,0.00341054,3193.4,3192.9,0.03077126]
[1642453951096,0.00454739,3193.6,3192.9,0.03077126]
[1642453951314,0.78289,3193.5,3192.9,0.03077126]
[1642453951495,0.78686896,3193.5,3192.9,0.03077126]
[1642453951695,0.00341054,3193.4,3192.9,0.03077126]
[1642453954610,0.00341054,3193.4,3192.7,1.3307117]
[1642453954856,0.00341054,3193.4,3192.7,0.0307117]
[1642453955458,0.05140342,3193.3,3192.7,0.0307117]
[1642453955848,0.00227369,3193.2,3192.7,0.0307117]
[1642453956248,2.31337152,3193.7,3192.7,1.3307117]
[1642453956249,0.00170527,3193.1,3192.7,1.3307117]
[1642453956740,0.00113684,3193.0,3192.7,1.3307117]
[1642453957050,0.78289,3193.5,3192.7,1.3307117]
[1642453957448,0.00341054,3193.4,3192.7,0.3307117]
[1642453957657,0.00341054,3193.4,3192.7,1.3307117]
[1642453957865,0.00341054,3193.4,3192.7,0.3307117]
[1642453958049,0.00341054,3193.4,3192.8,1.27347188]
[1642453958491,0.00341054,3193.4,3192.8,2.57347188]
[1642453958936,0.00341054,3193.4,3192.8,1.57347188]
[1642453959095,0.00341054,3193.4,3192.8,2.57347188]
[1642453959304,0.00341054,3193.4,3192.8,1.57347188]
[1642453959508,0.00341054,3193.4,3193.0,0.03074148]
[1642453959967,0.00341054,3193.4,3193.1,1.41074863]
[1642453960095,0.00341054,3193.4,3193.1,2.01074863]
[1642453964449,0.00341054,3193.4,3193.1,1.71074863]
[1642453964650,0.00341054,3193.4,3193.3,0.03065216]
[1642453966300,0.48492531,3193.4,3193.3,0.03065216]
[1642453966903,0.48492531,3193.4,3193.3,17.33065216]
[1642453967105,0.48492531,3193.4,3193.3,18.33065216]
[1642453967299,0.48492531,3193.4,3193.3,18.63065216]
[1642453967703,0.00341054,3193.4,3193.3,18.63065216]
[1642453967903,2.68159595,3193.4,3193.3,18.63065216]
[1642453968200,1.53054152,3193.9,3193.7,0.72084574]
[1642453968401,1.53054152,3193.9,3193.7,1.02084574]
[1642453968604,0.00227369,3193.8,3193.7,1.32084574]
[1642453969201,0.00227369,3193.8,3193.7,2.44520037]
[1642453969850,0.00227369,3193.8,3193.7,10.29520037]
[1642453970449,0.00227369,3193.8,3193.7,14.58458435]
[1642453970652,0.00227369,3193.8,3193.7,11.29520037]
[1642453971251,0.00227369,3193.8,3193.7,3.44520037]
[1642453971769,0.48370679,3193.8,3193.7,3.44520037]
[1642453972003,0.48370679,3193.8,3193.7,2.44520037]
[1642453972151,0.48370679,3193.8,3193.7,3.44520037]
[1642453972351,0.48370679,3193.8,3193.7,2.44520037]
[1642453972552,0.48370679,3193.8,3193.7,3.44520037]
[1642453972756,0.48370679,3193.8,3193.7,12.59520037]
[1642453973012,0.48370679,3193.8,3193.7,16.69520037]
[1642453974294,0.48370679,3193.8,3193.7,6.54520037]
[1642453974494,0.48370679,3193.8,3193.7,5.85488772]
[1642453974901,0.48370679,3193.8,3193.7,4.25488772]
[1642453975506,0.48370679,3193.8,3193.7,3.13053309]
[1642453975899,18.78370679,3193.8,3193.7,3.13053309]
[1642453976499,20.31424831,3193.8,3193.7,3.13053309]
[1642453977757,19.23570679,3193.8,3193.7,3.13053309]
[1642453977947,23.25317264,3193.8,3193.7,3.13053309]
[1642453978948,25.54916914,3193.8,3193.7,3.13053309]
[1642453980592,0.78299,3193.5,3192.6,1.1501]
[1642453980753,0.7829825,3193.3,3192.6,1.4501]
[1642453980992,0.7829825,3193.3,3192.7,0.00397897]
[1642453981635,0.7829825,3193.3,3193.0,1.33731657]
[1642453981994,0.7829825,3193.3,3193.1,0.00170527]
[1642453982396,2.29544485,3193.5,3193.1,0.00170527]
[1642453983394,3.07839285,3193.5,3193.1,0.00170527]
[1642453983596,1.565868,3193.5,3193.1,0.00170527]
[1642453985159,3.07839285,3193.5,3193.1,0.00170527]
[1642453986549,3.07839285,3193.5,3192.7,3.1]
[1642453986550,13.5,3193.4,3192.7,3.05170527]
[1642453986857,0.00113685,3193.3,3192.8,0.00170527]
[1642453988803,2.67945925,3193.3,3192.8,0.00170527]
[1642453989140,2.67945925,3193.3,3192.9,1.51799171]
[1642453989500,2.67945925,3193.3,3192.9,1.81799171]
[1642453990603,0.00113685,3193.3,3192.9,1.81799171]
[1642453994763,0.00113685,3193.3,3192.9,2.11799171]
[1642453997039,0.00113685,3193.3,3193.0,0.07430393]
[1642453997204,0.00113685,3193.3,3193.1,0.42954462]
[1642453997402,0.00113685,3193.3,3193.2,4.95]
[1642453997609,0.00113685,3193.3,3193.2,18.8]
[1642453998415,0.00113685,3193.3,3193.2,6.25]
[1642454001662,0.00113685,3193.3,3193.2,5.25]
[1642454001852,0.00113685,3193.3,3193.2,6.25]
[1642454002453,0.00113685,3193.3,3193.2,14.9]
[1642454002860,0.00113685,3193.3,3193.2,33.15]
[1642454003274,0.00113685,3193.3,3193.2,14.9]
[1642454003494,0.00113685,3193.3,3193.2,38.05]
[1642454003695,0.00113685,3193.3,3193.2,38.1668]
[1642454003915,0.00113685,3193.3,3193.2,38.1676]
[1642454004332,0.00113685,3193.3,3193.2,38.1668]
[1642454004507,0.00113685,3193.3,3193.2,38.05]
[1642454004698,0.00113685,3193.3,3193.2,38.95092]
[1642454004913,2.6783224,3194.1,3193.4,18.25]
[1642454005101,4.19084725,3194.3,3193.5,1.0]
[1642454005301,0.00397896,3194.0,3193.5,1.3]
[1642454005702,1.51252485,3194.2,3193.9,25.91607551]
[1642454005902,1.19278043,3194.2,3193.9,26.66807551]
[1642454006119,0.87320274,3194.3,3194.2,18.5]
[1642454006301,2.2959965,3194.5,3194.3,15.0]
[1642454006519,2.2959965,3194.5,3194.4,18.25]
[1642454006702,0.68345111,3194.6,3194.4,20.49172148]
[1642454006908,2.2959965,3194.7,3194.4,2.84412148]
[1642454006909,0.0022737,3194.5,3194.4,2.84412148]
[1642454007118,0.0022737,3194.5,3194.4,1.71052148]
[1642454007360,0.00284212,3194.6,3194.4,2.83692148]
[1642454007579,0.00284212,3194.6,3194.5,7.5]
[1642454007748,0.00284212,3194.6,3194.5,7.6208]
[1642454007944,0.00284212,3194.6,3194.5,7.6192]
[1642454008148,0.00284212,3194.6,3194.5,7.6184]
[1642454008346,0.00284212,3194.6,3194.5,7.6192]
[1642454009153,0.00284212,3194.6,3194.5,7.6224]
[1642454009348,0.00284212,3194.6,3194.5,15.6732]
[1642454009555,0.00284212,3194.6,3194.5,15.674]
[1642454009770,0.00284212,3194.6,3194.5,15.6724]
[1642454009953,0.00284212,3194.6,3194.5,7.6224]
[1642454010155,0.00284212,3194.6,3194.5,7.6216]
[1642454010363,0.00284212,3194.6,3194.5,7.6184]
[1642454010564,0.00284212,3194.6,3194.5,7.6176]
[1642454010752,0.00284212,3194.6,3194.5,7.5]
[1642454011395,0.00284212,3194.6,3194.5,7.6192]
[1642454011800,0.00284212,3194.6,3194.5,7.6176]
[1642454012007,0.00284212,3194.6,3194.5,1.0]
[1642454012199,0.00284212,3194.6,3194.5,1.1176]
[1642454012403,0.00284212,3194.6,3194.5,7.9668]
[1642454012596,0.00284212,3194.6,3194.5,8.9684]
[1642454012808,0.00284212,3194.6,3194.5,8.85]
[1642454013617,0.00284212,3194.6,3194.5,8.9676]
[1642454013797,0.00284212,3194.6,3194.5,12.0676]
[1642454014076,0.00284212,3194.6,3194.5,4.22]
[1642454014202,0.00284212,3194.6,3194.5,4.2192]
[1642454014407,0.00284212,3194.6,3194.5,4.1]
[1642454015477,0.00284212,3194.6,3194.5,3.1]
[1642454015754,1.11394824,3194.6,3194.5,3.1]
[1642454016355,19.61394824,3194.6,3194.5,3.1]
[1642454017168,20.77049932,3194.6,3194.5,3.1]
[1642454017755,21.55317932,3194.6,3194.5,3.1]
[1642454018608,24.41409409,3194.6,3194.5,3.1]
[1642454018813,23.63141409,3194.6,3194.5,3.1]
[1642454019013,1.11907396,3194.1,3193.8,1.58958875]
[1642454019300,1.11907396,3194.1,3193.9,0.00113684]
[1642454020331,2.70120996,3194.4,3193.9,0.00113684]
[1642454020714,0.00113685,3194.3,3193.9,0.00113684]
[1642454022111,1.1846731,3194.4,3193.9,0.00113684]
[1642454022112,1.13580995,3194.4,3193.9,0.00113684]
[1642454022348,1.45392505,3194.3,3193.9,0.00113684]
[1642454022560,1.45392505,3194.3,3193.9,0.00227369]
[1642454023961,1.45392505,3194.3,3193.9,3.10227369]
[1642454024156,1.13580995,3194.4,3193.9,3.10227369]
[1642454024355,1.13580995,3194.4,3194.0,0.00170527]
[1642454024570,1.13580995,3194.4,3194.0,1.00170527]
[1642454024758,1.13580995,3194.4,3194.1,0.3]
[1642454024955,1.13580995,3194.4,3194.1,0.30113685]
[1642454026400,1.13580995,3194.4,3194.1,0.41953685]
[1642454026607,1.13580995,3194.4,3194.2,0.1176]
[1642454026809,1.13580995,3194.4,3194.3,16.6268151]
[1642454027022,1.13580995,3194.4,3194.3,17.3452151]
[1642454027204,1.13580995,3194.4,3194.3,18.3500151]
[1642454027205,1.13485295,3194.4,3194.3,18.3500151]
[1642454027410,1.13485295,3194.4,3194.3,18.3492151]
[1642454027606,1.13485295,3194.4,3194.3,18.3500151]
[1642454027820,1.13485295,3194.4,3194.3,36.4768151]
[1642454028223,1.13485295,3194.4,3194.3,36.6072151]
[1642454028411,1.13485295,3194.4,3194.3,36.6088151]
[1642454028607,1.13485295,3194.4,3194.3,36.81124902]
[1642454028805,1.13485295,3194.4,3194.3,36.81044902]
[1642454029226,1.51653686,3195.4,3194.3,36.81044902]
[1642454029227,1.51653686,3195.4,3194.5,18.25]
[1642454029407,1.51653686,3195.4,3194.4,19.2822]
[1642454029408,1.51653686,3195.4,3194.8,1.26923447]
[1642454029620,0.00568423,3195.3,3194.9,18.702]
[1642454029867,0.00568423,3195.3,3194.9,18.8388]
[1642454030081,0.00511581,3195.2,3195.0,1.1328]
[1642454030310,0.00511581,3195.2,3195.0,1.1344]
[1642454030453,1.51653686,3195.4,3195.1,18.2288]
[1642454030655,1.51653686,3195.4,3195.2,1.78207]
[1642454030959,1.48889716,3196.2,3195.2,1.90527]
[1642454030960,0.00568423,3195.3,3195.2,1.90527]
[1642454031157,0.00568423,3195.3,3195.2,17.83207]
[1642454031369,1.51653686,3196.0,3195.2,17.95607]
[1642454031770,0.00909478,3195.9,3195.3,0.1192]
[1642454031956,0.00909478,3195.9,3195.3,0.1208]
[1642454032157,0.00852635,3195.8,3195.3,0.1216]
[1642454032357,0.00852635,3195.8,3195.4,1.35552766]
[1642454032572,0.00795793,3195.7,3195.4,1.65552766]
[1642454032773,0.00795793,3195.7,3195.4,1.95552766]
[1642454032970,0.0073895,3195.6,3195.4,1.95552766]
[1642454033400,0.00682108,3195.5,3195.4,1.95552766]
[1642454034001,0.00682108,3195.5,3195.4,20.32632766]
[1642454034200,1.51653686,3196.1,3195.6,19.03187]
[1642454034399,1.51653686,3196.1,3195.7,0.452]
[1642454034608,0.00284212,3196.0,3195.7,1.8872]
[1642454034809,0.00284212,3196.0,3195.8,0.1304]
[1642454035108,0.0022737,3195.9,3195.8,19.87546]
[1642454035305,0.0022737,3195.9,3195.8,38.28386]
[1642454035506,0.0022737,3195.9,3195.8,39.72386]
[1642454035805,0.0022737,3195.9,3195.8,39.72226]
[1642454036007,0.0022737,3195.9,3195.8,39.72306]
[1642454036204,0.0022737,3195.9,3195.8,39.72226]
[1642454036405,0.0022737,3195.9,3195.8,39.72306]
[1642454036605,0.0022737,3195.9,3195.8,39.72226]
[1642454036812,0.0022737,3195.9,3195.8,40.50412]
[1642454037006,0.0022737,3195.9,3195.8,21.67229392]
[1642454037457,0.0022737,3195.9,3195.8,21.67469392]
[1642454037663,0.0022737,3195.9,3195.8,21.67149392]
[1642454037875,0.0022737,3195.9,3195.8,20.88963392]
[1642454038051,0.0022737,3195.9,3195.8,20.89123392]
[1642454038652,0.0022737,3195.9,3195.8,20.89203392]
[1642454039052,0.0022737,3195.9,3195.8,20.89123392]
[1642454039456,0.0022737,3195.9,3195.8,20.88803392]
[1642454039669,0.0022737,3195.9,3195.8,20.88883392]
[1642454040277,0.0022737,3195.9,3195.8,20.88803392]
[1642454040569,0.0022737,3195.9,3195.8,20.88883392]
[1642454040761,0.0022737,3195.9,3195.8,20.88803392]
[1642454041009,0.0022737,3195.9,3195.8,20.88883392]
[1642454041217,0.0022737,3195.9,3195.8,20.89123392]
[1642454041405,0.0022737,3195.9,3195.8,20.88883392]
[1642454042250,0.0022737,3195.9,3195.8,20.88803392]
[1642454042406,0.0022737,3195.9,3195.8,20.88963392]
[1642454042815,0.0022737,3195.9,3195.8,20.88883392]
[1642454043010,0.0022737,3195.9,3195.8,2.38883392]
[1642454043225,0.0022737,3195.9,3195.8,0.93123392]
[1642454043408,0.0022737,3195.9,3195.8,0.80083392]
[1642454043609,0.0022737,3195.9,3195.8,0.61763392]
[1642454043810,0.0022737,3195.9,3195.8,0.50083392]
[1642454044014,0.0022737,3195.9,3195.8,0.20083392]
[1642454044420,0.0022737,3195.9,3195.7,1.7176]
[1642454044862,1.51653686,3196.5,3195.8,4.25]
[1642454045079,1.51653686,3196.5,3195.9,1.0]
[1642454045259,0.00511581,3196.4,3195.7,1.7192]
[1642454045667,0.00454739,3196.3,3195.7,1.6]
[1642454046060,0.00397897,3196.2,3195.7,1.6]
[1642454046361,0.00341054,3196.1,3195.7,1.6]
[1642454046761,1.28235548,3196.0,3195.7,1.6]
[1642454047161,0.0022737,3195.9,3195.7,1.6]
[1642454047359,0.0022737,3195.9,3195.7,1.7176]
[1642454047562,0.00170527,3195.8,3195.7,1.7184]
[1642454047761,0.00170527,3195.8,3195.7,1.72]
[1642454047975,0.00170527,3195.8,3195.7,1.6]
[1642454048361,0.00170527,3195.8,3195.7,1.72]
[1642454048600,0.00170527,3195.8,3195.7,1.6]
[1642454048800,0.00170527,3195.8,3195.7,1.7208]
[1642454049000,0.00170527,3195.8,3195.7,17.2788]
[1642454049202,0.00170527,3195.8,3195.7,17.278]
[1642454049403,0.00170527,3195.8,3195.7,17.2748]
[1642454049614,0.00170527,3195.8,3195.7,17.278]
[1642454049812,0.00170527,3195.8,3195.7,17.2796]
[1642454050205,0.00170527,3195.8,3195.7,17.2812]
[1642454050610,0.00170527,3195.8,3195.7,17.278]
[1642454050902,0.00170527,3195.8,3195.7,17.47883392]
[1642454051806,0.00170527,3195.8,3195.7,17.47803392]
[1642454052040,0.00170527,3195.8,3195.7,17.48123392]
[1642454052450,0.00170527,3195.8,3195.7,17.48203392]
[1642454052650,2.62775646,3196.3,3196.2,1.32460208]
[1642454053057,1.29645617,3196.4,3196.2,0.6]
[1642454053451,1.29645617,3196.4,3195.9,1.3]
[1642454053664,1.29645617,3196.4,3196.0,0.3]
[1642454054253,1.29645617,3196.4,3196.1,1.31220597]
[1642454054658,1.29645617,3196.4,3196.1,1.91220597]
[1642454054858,1.29645617,3196.4,3196.1,0.6]
[1642454055063,1.29645617,3196.4,3196.0,0.3]
[1642454055257,1.29645617,3196.4,3195.9,1.7176]
[1642454055458,1.29645617,3196.4,3195.9,1.72]
[1642454055659,1.29645617,3196.4,3195.9,0.7176]
[1642454055871,1.29645617,3196.4,3195.9,0.6]
[1642454056104,1.29645617,3196.4,3195.8,0.1192]
[1642454056505,1.46320839,3195.9,3195.8,0.1176]
[1642454056719,1.46320839,3195.9,3195.6,3.1]
[1642454058023,1.46320839,3195.9,3195.7,0.3]
[1642454058609,1.46320839,3195.9,3195.6,3.4]
[1642454058610,1.46320839,3195.9,3195.6,1.7841]
[1642454058808,1.46320839,3195.9,3195.6,1.3059]
[1642454059017,0.78242,3195.5,3194.5,0.125082]
[1642454059212,0.04805561,3195.3,3194.5,0.125082]
[1642454059414,0.04805561,3195.3,3194.6,0.00682108]
[1642454059415,1.53624842,3195.0,3194.6,0.00682108]
[1642454059618,0.04201523,3194.8,3194.6,0.00682108]
[1642454059865,1.39926917,3194.9,3194.6,0.00682108]
[1642454065206,1.39110551,3194.9,3194.6,3.10682108]
[1642454065610,1.39110551,3194.9,3194.7,0.00625266]
[1642454066075,1.46379483,3195.3,3194.7,0.00625266]
[1642454067460,1.35338644,3195.1,3194.7,0.00625266]
[1642454071632,1.35338644,3195.1,3194.8,1.39404428]
[1642454071831,1.35338644,3195.1,3194.9,0.3]
[1642454072032,1.35338644,3195.1,3194.9,0.30511581]
[1642454072230,1.35338644,3195.1,3195.0,0.00454739]
[1642454072636,1.43659082,3195.4,3195.0,0.00454739]
[1642454073034,1.43659082,3195.4,3194.9,0.00511581]
[1642454073233,1.43659082,3195.4,3194.8,0.00568423]
[1642454074042,1.38819897,3195.3,3194.8,0.00568423]
[1642454074238,5.50419633,3195.3,3194.8,0.00568423]
[1642454074439,0.78254,3195.2,3194.8,0.00568423]
[1642454074651,4.07852554,3195.1,3194.7,0.00625266]
[1642454075262,1.01404,3195.2,3194.7,0.00625266]
[1642454075568,0.78254,3195.2,3194.7,0.00625266]
[1642454075975,2.67689465,3195.1,3194.7,0.00625266]
[1642454076364,1.24421932,3194.8,3194.7,0.00625266]
[1642454076565,2.40728534,3194.8,3194.7,0.00625266]
[1642454077667,7.85728534,3194.8,3194.7,0.00625266]
[1642454077884,2.40728534,3194.8,3194.7,0.00625266]
[1642454078960,3.83996067,3194.8,3194.7,0.00625266]
[1642454079471,2.67689465,3194.8,3194.7,0.00625266]
[1642454080051,2.67689465,3194.8,3194.7,1.00625266]
[1642454080247,2.67689465,3194.8,3194.7,2.41166052]
[1642454081651,2.67689465,3194.9,3194.7,2.41166052]
[1642454082074,2.67689465,3194.9,3194.8,0.00568423]
[1642454083963,2.67689465,3195.5,3194.8,0.00568423]
[1642454084173,1.32331164,3195.2,3194.8,0.00568423]
[1642454085364,2.67689465,3195.1,3194.8,0.00568423]
[1642454090074,2.67689465,3195.1,3194.8,0.12408423]
[1642454090266,2.67689465,3195.1,3194.8,0.12808423]
[1642454090469,2.67689465,3195.1,3194.9,0.00511581]
[1642454092072,3.83519465,3195.7,3194.9,0.00511581]
[1642454092674,3.83519465,3195.7,3195.5,1.28512543]
[1642454092871,2.67689465,3195.7,3195.5,1.58512543]
[1642454093229,2.77511978,3196.1,3195.6,0.00113685]
[1642454093610,0.00113685,3196.0,3195.6,0.00113685]
[1642454095216,0.00113685,3196.0,3195.6,3.10113685]
[1642454095616,0.00113685,3196.0,3195.7,0.3]
[1642454096038,0.00113685,3196.0,3195.6,3.40113685]
[1642454103415,0.00113685,3196.0,3195.6,2.40113685]
[1642454103823,0.00170528,3195.9,3195.6,2.40113685]
[1642454104216,0.00113685,3195.8,3195.6,2.40113685]
[1642454104616,0.00284212,3196.1,3195.6,2.40113685]
[1642454105107,0.0022737,3196.0,3195.6,2.70113685]
[1642454105465,0.00170528,3195.9,3195.6,2.70113685]
[1642454105862,0.00113685,3195.8,3195.6,2.70113685]
[1642454106261,0.00284212,3196.1,3195.6,2.70113685]
[1642454106665,0.0022737,3196.0,3195.6,2.70113685]
[1642454107094,0.00170528,3195.9,3195.6,2.70113685]
[1642454107469,0.00113685,3195.8,3195.6,2.70113685]
[1642454107768,0.00284212,3196.1,3195.6,2.70113685]
[1642454108079,0.0022737,3196.0,3195.6,2.70113685]
[1642454108401,0.00170528,3195.9,3195.7,1.14052269]
[1642454108835,0.00113685,3195.8,3195.7,1.14052269]
[1642454109025,0.00113685,3195.8,3195.7,2.14052269]
[1642454109218,0.00113685,3195.8,3195.7,20.64052269]
[1642454109423,0.00113685,3195.8,3195.7,21.22292269]
[1642454109619,0.00113685,3195.8,3195.7,39.47772269]
[1642454109817,0.00113685,3195.8,3195.7,21.22772269]
[1642454110037,0.00113685,3195.8,3195.7,21.22532269]
[1642454110223,0.00113685,3195.8,3195.7,39.47452269]
[1642454110422,0.00113685,3195.8,3195.7,20.97372269]
[1642454110724,0.00113685,3195.8,3195.7,2.72452269]
[1642454110921,0.00113685,3195.8,3195.7,2.72132269]
[1642454111120,0.00113685,3195.8,3195.7,1.26452269]
[1642454111334,0.00113685,3195.8,3195.6,2.51873685]
[1642454111335,5.45113685,3195.8,3195.6,2.51873685]
[1642454111522,4.25,3195.7,3195.6,4.00649646]
[1642454111733,4.26254441,3195.7,3195.6,4.00649646]
[1642454112360,19.66947164,3195.7,3195.6,4.00649646]
[1642454113067,21.07033711,3195.7,3195.6,4.00649646]
[1642454113382,25.26309234,3195.7,3195.6,2.40113685]
[1642454114370,28.61733184,3195.7,3195.6,2.40113685]
[1642454115265,27.10079498,3195.7,3195.6,2.40113685]
[1642454115582,18.5,3195.6,3194.4,0.125048]